fUST/lending_fUST_20260123
["ID","MTS","AMOUNT","RATE_DAILY","PERIOD"]
[403098410,1769157508189,10000.01,0.00012,2]
[403098411,1769157508211,10000.01,0.00012,2]
[403098412,1769157508234,10000.01,0.00012,2]
[403098413,1769157508256,10000.01,0.00012,2]
[403098414,1769157508277,8834.76587194,0.00012,2]
[403098415,1769157532165,1165.24412806,0.00012801,2]
[403098416,1769157532196,3834.75587194,0.00012801,2]
[403098418,1769157539878,363.63149117,0.00012801,2]
[403098420,1769157555116,5000.0,0.00012801,2]
[403098421,1769157577534,801.62263689,0.00012801,2]
[403098422,1769157577557,4198.37736311,0.00012801,2]
[403098423,1769157585336,207.50424573,0.00012801,2]
[403098424,1769157600607,5000.0,0.00012801,2]
[403098425,1769157626802,594.12839116,0.00012801,2]
[403098426,1769157626827,4405.87160884,0.00012801,2]
[403098427,1769157648454,5594.13839116,0.0001217,2]
[403098428,1769157648475,4405.86160884,0.0001217,2]
[403098429,1769157652789,-5000.0,0.00012801,2]
[403098430,1769157673038,0.01,0.00012801,2]
[403098431,1769157673062,4999.99,0.00012801,2]
[403098434,1769157695783,5000.0,0.00012801,2]
[403098436,1769157717805,0.02,0.00012801,2]
[403098437,1769157717827,4999.98,0.00012801,2]
[403098438,1769157739979,5000.0,0.00012801,2]
[403098439,1769157762204,0.03,0.00012801,2]
[403098440,1769157762227,4999.97,0.00012801,2]
[403098443,1769157784403,5000.0,0.00012801,2]
[403098534,1769158194880,0.04,0.00012144,2]
[403098535,1769158194904,299.96,0.00012144,2]
[403098553,1769158232173,-203.53347568,0.00012996,2]
[403098554,1769158232184,-285.40308709,0.00013066,2]
[403098555,1769158232195,-14.59691291,0.00013066,2]
[403098556,1769158232205,-300.0,0.00013066,2]
[403098557,1769158232214,-764.68090787,0.00013066,2]
[403098558,1769158232226,-435.31909213,0.00013066,2]
[403098559,1769158232235,-99.22852631,0.00013067,2]
[403098560,1769158232246,-1779.08496149,0.00013067,2]
[403098561,1769158232257,-1046.39845533,0.00013067,2]
[403098562,1769158232281,-7022.14089432,0.00013067,2]
[403098563,1769158232292,-17294.66422918,0.00013067,2]
[403098564,1769158232303,-1027.6,0.00013067,2]
[403098584,1769158238571,-2960.73088,0.00013067,2]
[403098585,1769158238584,-1074.99956033,0.00013067,2]
[403098586,1769158238595,-3535.89918506,0.00013067,2]
[403098587,1769158238607,-3195.99378172,0.00013067,2]
[403098886,1769158243522,-982.673,0.00013067,2]
[403098887,1769158243572,-3720.14999924,0.00013067,2]
[403098891,1769158245139,-661.98869106,0.00013067,2]
[403098892,1769158245150,-675.61857851,0.00013067,2]
[403098903,1769158246399,-149001.94524491,0.00013067,2]
[403098904,1769158246409,-1503.00705495,0.00013073,2]
[403098905,1769158246418,-170.144,0.00013169,2]
[403098906,1769158246428,-181.492,0.00013172,2]
[403098907,1769158246437,-50000.0,0.00013173,2]
[403098908,1769158246448,-487.0,0.00013173,2]
[403098909,1769158246458,-487.0,0.00013173,2]
[403098910,1769158246467,-722.9,0.00013173,2]
[403098911,1769158246476,-500.0,0.00013199,2]
[403098912,1769158246487,-153.00266868,0.00013199,2]
[403098913,1769158246497,-630.83650695,0.00013273,2]
[403098914,1769158246507,-500.0,0.00013273,2]
[403098915,1769158246518,-332.12150729,0.00013273,2]
[403098916,1769158246527,-500.0,0.00013273,2]
[403098917,1769158246536,-500.0,0.00013273,2]
[403098918,1769158246545,-500.0,0.00013273,2]
[403098919,1769158246554,-500.0,0.00013273,2]
[403098920,1769158246564,-500.0,0.00013273,2]
[403098921,1769158246573,-500.0,0.00013273,2]
[403098922,1769158246582,-500.0,0.00013273,2]
[403098923,1769158246591,-500.0,0.00013273,2]
[403098924,1769158246600,-500.0,0.00013273,2]
[403098925,1769158246609,-500.0,0.00013273,2]
[403098927,1769158246618,-500.0,0.00013336,2]
[403098929,1769158246627,-5006.569999,0.0001346,2]
[403098931,1769158246636,-500.0,0.00013473,2]
[403098933,1769158246645,-558.41887194,0.0001361,2]
[403098934,1769158246655,-300.0,0.00013673,2]
[403098935,1769158246665,-500.0,0.00013698,2]
[403098936,1769158246676,-500.0,0.00013698,2]
[403098937,1769158246687,-500.0,0.00013698,2]
[403098938,1769158246696,-500.0,0.00013698,2]
[403098939,1769158246706,-500.0,0.00013698,2]
[403098940,1769158246715,-545.1862007,0.00013698,2]
[403098941,1769158246725,-500.0,0.00013698,2]
[403098942,1769158246734,-500.0,0.00013698,2]
[403098943,1769158246743,-500.0,0.00013698,2]
[403098944,1769158246753,-500.0,0.00013698,2]
[403098945,1769158246762,-500.0,0.00013698,2]
[403098946,1769158246773,-500.0,0.00013698,2]
[403098947,1769158246783,-500.0,0.00013698,2]
[403098948,1769158246794,-500.0,0.00013698,2]
[403098949,1769158246804,-500.0,0.00013698,2]
[403098950,1769158246813,-500.0,0.00013698,2]
[403098951,1769158246823,-151.0,0.00013699,2]
[403098952,1769158246832,-500.0,0.00013699,2]
[403098953,1769158246841,-495.22902253,0.00013699,2]
[403098954,1769158246850,-500.0,0.00013699,2]
[403098955,1769158246859,-500.0,0.00013699,2]
[403098956,1769158246868,-500.0,0.00013699,2]
[403098957,1769158246877,-500.0,0.00013699,2]
[403098958,1769158246886,-500.0,0.00013699,2]
[403098959,1769158246895,-526.67002344,0.00013699,2]
[403098960,1769158246904,-501.23330465,0.00013699,2]
[403098961,1769158246913,-500.0,0.00013699,2]
[403098962,1769158246923,-253.24401436,0.00013699,2]
[403098963,1769158246935,-500.0,0.00013699,2]
[403098964,1769158246944,-500.0,0.00013699,2]
[403098965,1769158246954,-500.0,0.00013699,2]
[403098966,1769158246964,-520.18111164,0.00013699,2]
[403098967,1769158247217,-500.0,0.00013699,2]
[403098968,1769158247227,-525.07791508,0.00013699,2]
[403098969,1769158247236,-500.0,0.00013699,2]
[403098970,1769158247246,-500.0,0.00013699,2]
[403098971,1769158247256,-500.0,0.00013699,2]
[403098972,1769158247267,-500.0,0.00013699,2]
[403098973,1769158247279,-500.0,0.00013699,2]
[403098974,1769158247288,-500.0,0.00013699,2]
[403098975,1769158247297,-500.0,0.00013699,2]
[403098976,1769158247306,-461.67526834,0.00013779,2]
[403098977,1769158247315,-151.0,0.00013779,2]
[403098978,1769158247325,-151.72386303,0.00013779,2]
[403098979,1769158247334,-168.3888056,0.00013779,2]
[403098980,1769158247343,-156.64558,0.00013779,2]
[403098981,1769158247352,-30000.0,0.00013779,2]
[403098982,1769158247362,-168.3888056,0.00013779,2]
[403098983,1769158247372,-174.61919141,0.00013779,2]
[403098984,1769158247381,-151.0,0.00013779,2]
[403098985,1769158247390,-181.08010149,0.00013779,2]
[403098986,1769158247399,-187.78006525,0.00013779,2]
[403098987,1769158247408,-194.72792766,0.00013779,2]
[403098988,1769158247418,-201.93286099,0.00013779,2]
[403098989,1769158247427,-209.40437684,0.00013779,2]
[403098990,1769158247436,-217.15233878,0.00013779,2]
[403098991,1769158247445,-225.18697532,0.00013779,2]
[403098992,1769158247453,-233.51889341,0.00013779,2]
[403098993,1769158247462,-242.15909246,0.00013779,2]
[403098994,1769158247472,-251.11897888,0.00013779,2]
[403098995,1769158247481,-2230.315306,0.00013779,2]
[403098996,1769158247490,-260.4103811,0.00013779,2]
[403098997,1769158247501,-270.0455652,0.00013779,2]
[403098998,1769158247511,-280.03725112,0.00013779,2]
[403098999,1769158247522,-290.39862941,0.00013779,2]
[403099000,1769158247531,-301.1433787,0.00013779,2]
[403099001,1769158247540,-1000.0,0.00013821,2]
[403099002,1769158247549,-1000.0,0.00013821,2]
[403099003,1769158247558,-1000.0,0.00013821,2]
[403099004,1769158247567,-1000.0,0.00013821,2]
[403099005,1769158247577,-1000.0,0.00013821,2]
[403099006,1769158247586,-302.67181173,0.00013821,2]
[403099007,1769158247595,-544.80926111,0.00013821,2]
[403099008,1769158247604,-968.54979752,0.00013821,2]
[403099009,1769158247613,-321.63966973,0.00013852,2]
[403099010,1769158247622,-43384.8900094,0.0001392,2]
[403099011,1769158247631,-151.0,0.0001392,2]
[403099012,1769158247640,-472.25596348,0.00014221,2]
[403099013,1769158247650,-1000.0,0.00014247,2]
[403099014,1769158247659,-1000.0,0.00014247,2]
[403099015,1769158247668,-998.0,0.00014247,2]
[403099016,1769158247677,-1000.0,0.00014247,2]
[403099017,1769158247686,-1000.0,0.00014247,2]
[403099018,1769158247695,-1001.58207676,0.00014247,2]
[403099019,1769158247703,-151.0,0.00014247,2]
[403099020,1769158247713,-478.75725327,0.00014327,2]
[403099021,1769158247722,-31110.0,0.00014327,2]
[403099022,1769158247731,-151.0,0.00014327,2]
[403099023,1769158247741,-2312.83697232,0.00014327,2]
[403099024,1769158247752,-420.0,0.00014328,2]
[403099025,1769158247761,-418.0,0.00014328,2]
[403099026,1769158247770,-164.98069196,0.00014368,2]
[403099027,1769158247779,-1500.0,0.00014368,2]
[403099028,1769158247788,-1500.0,0.00014368,2]
[403099029,1769158247797,-592.31797826,0.00014368,2]
[403099030,1769158247806,-292.0,0.00014372,2]
[403099031,1769158247815,-151.0,0.000144,2]
[403099032,1769158247824,-2503.77760276,0.000145,2]
[403099033,1769158247834,-153.422386,0.000145,2]
[403099034,1769158247843,-165.70268413,0.00014573,2]
[403099035,1769158247852,-496.47127164,0.00014875,2]
[403099036,1769158247861,-25503.67170646,0.00014875,2]
[403099059,1769158283741,4400.0,0.00012801,2]
[403099078,1769158312989,392.7,0.00012329,2]
[403099099,1769158323272,327.25,0.00012329,2]
[403099100,1769158333912,272.71,0.00012329,2]
[403099101,1769158359062,227.25,0.00012329,2]
[403099122,1769158369458,189.38,0.00012329,2]
[403099123,1769158379890,157.82,0.00012329,2]
[403099124,1769158390297,789.1,0.00012329,2]
[403099125,1769158413880,997.3792479,0.00012801,2]
[403099126,1769158421305,179.65,0.00012329,2]
[403099127,1769158422275,1503.24047098,0.00012801,2]
[403099129,1769158431704,263.57028112,0.00012329,2]
[403099130,1769158431727,634.68971888,0.00012329,2]
[403099131,1769158437991,214.5796323,0.00012801,2]
[403099133,1769158465491,3816.84857906,0.000105,2]
[403099134,1769158466306,3816.84857906,0.00010786,4]
[403099135,1769158467105,1517.0434907,0.00011073,6]
[403099136,1769158467127,2299.80508836,0.00011073,6]
[403099137,1769158467801,3816.84857906,0.00011359,8]
[403099138,1769158468520,3816.84857906,0.00011646,10]
[403099139,1769158469156,66.50775352,0.00011932,13]
[403099140,1769158469180,3750.34082554,0.00011932,13]
[403099141,1769158469755,3816.84857906,0.00012219,15]
[403099142,1769158470388,2432.8205954,0.00012505,17]
[403099143,1769158470410,1384.02798366,0.00012505,17]
[403099144,1769158471045,3816.84857906,0.00012791,19]
[403099145,1769158481349,4799.13343728,0.00012318,2]
[403099146,1769158481372,803.10921965,0.00012318,2]
[403099147,1769158483348,1000.0,0.00012801,2]
[403099148,1769158490314,-300.0,0.00013078,21]
[403099149,1769158491637,-300.0,0.00013078,21]
[403099150,1769158492510,-300.0,0.00013078,21]
[403099151,1769158493472,-300.0,0.00013078,21]
[403099153,1769158501349,-300.0,0.00013078,21]
[403099179,1769158569424,555.1822473,0.00010998,2]
[403099180,1769158583256,-300.0,0.00013078,21]
[403099181,1769158589306,150.0,7.703e-05,2]
[403099182,1769158589704,150.0,8.403e-05,2]
[403099183,1769158590105,150.0,9.103e-05,2]
[403099202,1769158611101,1146.9477,0.00012801,2]
[403099208,1769158621199,-300.0,0.00013078,21]
[403099213,1769158623076,-300.0,0.00013078,21]
[403099216,1769158647781,-300.0,0.00012966,2]
[403099217,1769158647800,-224.0,0.00012966,2]
[403099218,1769158647821,-203.66776929,0.00012966,2]
[403099219,1769158647849,-391272.33223071,0.00012967,2]
[403099220,1769158654963,150.0,7.711e-05,2]
[403099221,1769158655365,150.0,8.412e-05,2]
[403099222,1769158655817,150.0,9.113e-05,2]
[403099223,1769158656265,150.0,9.813e-05,2]
[403099224,1769158656663,150.0,0.00010514,2]
[403099225,1769158657123,150.0,0.00011215,2]
[403099226,1769158657517,150.0,0.00011916,2]
[403099227,1769158657980,169.26,0.00012617,2]
[403099228,1769158667873,7742.8201199,0.00012436,2]
[403099229,1769158678377,818.85,0.00012801,2]
[403099232,1769158723341,150.0,7.728e-05,2]
[403099233,1769158723744,194.9,8.431e-05,2]
[403099234,1769158724171,292.36,9.133e-05,2]
[403099235,1769158725257,389.81,9.836e-05,2]
[403099236,1769158725290,92.0098801,0.00010539,2]
[403099237,1769158725314,395.2501199,0.00010539,2]
[403099238,1769158725359,584.71,0.00011241,2]
[403099239,1769158725768,682.16,0.00011944,2]
[403099240,1769158726168,779.61,0.00012646,2]
[403099241,1769158751022,5000.0,0.00012801,2]
[403099242,1769158767210,2558.2798801,0.00012801,2]
[403099243,1769158767234,1841.7301199,0.00012801,2]
[403099245,1769158801328,150.0,7.699e-05,2]
[403099246,1769158801728,223.9,8.399e-05,2]
[403099247,1769158802140,335.85,9.099e-05,2]
[403099248,1769158802701,447.8,9.799e-05,2]
[403099249,1769158803119,559.75,0.00010499,2]
[403099250,1769158803560,671.7,0.00011199,2]
[403099251,1769158803961,783.65,0.00011899,2]
[403099252,1769158804370,895.6,0.00012599,2]
[403099253,1769158837168,-172.72923836,0.00012916,2]
[403099254,1769158837194,-500.0,0.00012916,2]
[403099255,1769158837220,-603.0,0.00012916,2]
[403099256,1769158837246,-300.0,0.00012964,2]
[403099257,1769158837269,-172.72923836,0.00012965,2]
[403099258,1769158837284,-500.0,0.00012965,2]
[403099259,1769158837297,-603.0,0.00012965,2]
[403099260,1769158837308,-300.0,0.00012965,2]
[403099261,1769158837320,-2678.15222967,0.00012965,2]
[403099263,1769158860438,4090.0298801,0.00012801,2]
[403099264,1769158860464,414.4448625,0.00012801,2]
[403099266,1769158877583,150.0,7.722e-05,2]
[403099267,1769158877977,249.7,8.423e-05,2]
[403099268,1769158878396,374.55,9.125e-05,2]
[403099269,1769158878808,499.4,9.827e-05,2]
[403099270,1769158879200,624.26,0.00010529,2]
[403099271,1769158879597,749.11,0.00011231,2]
[403099272,1769158879984,873.96,0.00011933,2]
[403099273,1769158880376,998.81,0.00012635,2]
[403099274,1769158903961,5000.0,0.00012801,2]
[403099275,1769158952496,65.7751375,7.708e-05,2]
[403099276,1769158952520,84.2248625,7.708e-05,2]
[403099277,1769158952892,150.0,8.409e-05,2]
[403099278,1769158953272,201.98,9.109e-05,2]
[403099279,1769158953687,269.31,9.81e-05,2]
[403099280,1769158954076,336.63,0.00010511,2]
[403099281,1769158954497,403.96,0.00011211,2]
[403099282,1769158954889,471.29,0.00011912,2]
[403099283,1769158955279,538.61,0.00012613,2]
[403099284,1769158962972,5000.0,0.00012801,2]
[403099285,1769158970784,1360.40574284,0.00012801,2]
[403099286,1769158983995,242.41,0.000154,120]
[403099287,1769158985913,1183.59939466,0.00012801,2]
[403099288,1769158992279,-200.0,0.00012801,2]
[403099289,1769158996828,-300.0,0.00012801,2]
[403099290,1769158998422,-307.2240708,0.00012801,2]
[403099291,1769159000590,-176.89329581,0.00012801,2]
[403099292,1769159003299,-323.10670419,0.00012801,2]
[403099293,1769159006404,-229.29265395,0.00012801,2]
[403099294,1769159010603,-175.48463812,0.00012801,2]
[403099295,1769159014167,-153.96684583,0.00012801,2]
[403099296,1769159015858,-170.57755492,0.00012801,2]
[403099297,1769159018041,-184.43475781,0.00012801,2]
[403099298,1769159019920,-207.50424573,0.00012801,2]
[403099299,1769159022167,-233.98461083,0.00012801,2]
[403099300,1769159025073,150.0,7.682e-05,2]
[403099301,1769159025476,150.0,8.38e-05,2]
[403099302,1769159026395,150.0,9.078e-05,2]
[403099303,1769159026831,171.47,9.776e-05,2]
[403099304,1769159027240,214.34,0.00010475,2]
[403099305,1769159027652,257.21,0.00011173,2]
[403099306,1769159028079,300.07,0.00011871,2]
[403099307,1769159028475,342.94,0.0001257,2]
[403099308,1769159028748,-300.0,0.00012801,2]
[403099310,1769159096164,150.0,7.683e-05,2]
[403099311,1769159096583,150.0,8.381e-05,2]
[403099312,1769159097007,150.0,9.08e-05,2]
[403099313,1769159097436,150.0,9.778e-05,2]
[403099314,1769159097840,150.0,0.00010477,2]
[403099315,1769159098244,170.45,0.00011175,2]
[403099316,1769159098652,198.86,0.00011874,2]
[403099317,1769159099031,227.27,0.00012572,2]
[403099324,1769159165743,150.0,7.668e-05,2]
[403099325,1769159166137,150.0,8.365e-05,2]
[403099326,1769159166573,150.0,9.062e-05,2]
[403099327,1769159166963,150.0,9.759e-05,2]
[403099328,1769159167362,150.0,0.00010456,2]
[403099329,1769159167766,150.0,0.00011153,2]
[403099330,1769159168169,150.0,0.0001185,2]
[403099331,1769159168586,150.0,0.00012547,2]
[403099332,1769159183446,635.07122735,0.00012707,2]
[403099341,1769159295946,150.0,7.734e-05,2]
[403099373,1769159359918,150.0,7.887e-05,2]
[403099404,1769159413764,-166.18740678,0.00012789,2]
[403099428,1769159432340,-6.54183155,0.00012789,2]
[403099430,1769159432349,-300.0,0.00012861,2]
[403099432,1769159432358,-300.0,0.00012861,2]
[403099434,1769159432367,-1200.0,0.00012861,2]
[403099436,1769159432376,-414.79444565,0.00012862,2]
[403099438,1769159432388,-187.20555435,0.00012862,2]
[403099440,1769159432396,-143.04687291,0.00012862,2]
[403099442,1769159432407,-250567.56383875,0.00012862,2]
[403099444,1769159432416,-212.6272424,0.00012889,2]
[403099446,1769159432425,-709.86807964,0.00012896,3]
[403099447,1769159432439,-525.78267096,0.0001296,2]
[403099448,1769159432448,-500.0,0.0001296,2]
[403099449,1769159432457,-500.0,0.0001296,2]
[403099450,1769159432466,-500.0,0.0001296,2]
[403099452,1769159432477,-500.0,0.0001296,2]
[403099454,1769159432486,-500.0,0.0001296,2]
[403099456,1769159432495,-500.0,0.0001296,2]
[403099458,1769159432507,-500.0,0.0001296,2]
[403099460,1769159432515,-500.0,0.0001296,2]
[403099462,1769159432524,-500.0,0.0001296,2]
[403099464,1769159432534,-500.0,0.0001296,2]
[403099466,1769159432543,-500.0,0.0001296,2]
[403099468,1769159432552,-500.0,0.0001296,2]
[403099470,1769159432561,-500.0,0.0001296,2]
[403099472,1769159432570,-500.0,0.0001296,2]
[403099474,1769159432579,-500.0,0.0001296,2]
[403099476,1769159432588,-500.0,0.0001296,2]
[403099477,1769159432597,-500.0,0.0001296,2]
[403099478,1769159432606,-500.0,0.0001296,2]
[403099479,1769159432615,-500.0,0.0001296,2]
[403099480,1769159432624,-500.0,0.0001296,2]
[403099481,1769159432633,-500.0,0.0001296,2]
[403099482,1769159432643,-399.06136486,0.0001296,2]
[403099483,1769159432653,-500.0,0.0001296,2]
[403099484,1769159432664,-615.79243731,0.0001296,2]
[403099485,1769159432674,-500.0,0.0001296,2]
[403099486,1769159432684,-500.0,0.0001296,2]
[403099487,1769159432693,-500.0,0.0001296,2]
[403099488,1769159432702,-582.96455038,0.0001296,2]
[403099489,1769159432711,-191.48062914,0.0001296,2]
[403099490,1769159432722,-500.0,0.0001296,2]
[403099491,1769159432731,-500.0,0.0001296,2]
[403099492,1769159432742,-500.0,0.0001296,2]
[403099493,1769159432751,-424.43885735,0.0001296,2]
[403099494,1769159432759,-500.0,0.0001296,2]
[403099495,1769159432768,-500.0,0.0001296,2]
[403099496,1769159432778,-500.0,0.0001296,2]
[403099497,1769159432787,-500.0,0.0001296,2]
[403099498,1769159432795,-500.0,0.0001296,2]
[403099499,1769159432804,-500.0,0.0001296,2]
[403099500,1769159432813,-500.0,0.0001296,2]
[403099501,1769159432822,-500.0,0.0001296,2]
[403099502,1769159432832,-500.0,0.0001296,2]
[403099503,1769159432841,-500.0,0.0001296,2]
[403099504,1769159432851,-500.0,0.0001296,2]
[403099505,1769159432860,-500.0,0.0001296,2]
[403099506,1769159432870,-500.0,0.0001296,2]
[403099507,1769159432879,-500.0,0.0001296,2]
[403099508,1769159432889,-500.0,0.0001296,2]
[403099509,1769159432899,-500.0,0.0001296,2]
[403099510,1769159432908,-500.0,0.0001296,2]
[403099511,1769159432918,-500.0,0.0001296,2]
[403099512,1769159432929,-500.0,0.0001296,2]
[403099513,1769159432938,-500.0,0.0001296,2]
[403099514,1769159432947,-500.0,0.0001296,2]
[403099515,1769159432958,-500.0,0.0001296,2]
[403099516,1769159432968,-500.0,0.0001296,2]
[403099517,1769159432978,-500.0,0.0001296,2]
[403099518,1769159432988,-500.0,0.0001296,2]
[403099519,1769159432997,-500.0,0.0001296,2]
[403099520,1769159433007,-500.0,0.0001296,2]
[403099521,1769159433017,-500.0,0.0001296,2]
[403099522,1769159433027,-500.0,0.0001296,2]
[403099523,1769159433036,-500.0,0.0001296,2]
[403099524,1769159433046,-377.35580365,0.0001296,2]
[403099525,1769159433055,-500.0,0.0001296,2]
[403099526,1769159433064,-500.0,0.0001296,2]
[403099527,1769159433073,-500.0,0.0001296,2]
[403099528,1769159433082,-500.0,0.0001296,2]
[403099529,1769159433091,-500.0,0.0001296,2]
[403099530,1769159433100,-500.0,0.0001296,2]
[403099531,1769159433109,-500.0,0.0001296,2]
[403099532,1769159433118,-500.0,0.0001296,2]
[403099533,1769159433127,-500.0,0.0001296,2]
[403099534,1769159433136,-500.0,0.0001296,2]
[403099535,1769159433146,-500.0,0.0001296,2]
[403099536,1769159433155,-500.0,0.0001296,2]
[403099537,1769159433164,-500.0,0.0001296,2]
[403099538,1769159433173,-500.0,0.0001296,2]
[403099539,1769159433183,-500.0,0.0001296,2]
[403099540,1769159433192,-500.0,0.0001296,2]
[403099541,1769159433201,-500.0,0.0001296,2]
[403099542,1769159433212,-500.0,0.0001296,2]
[403099543,1769159433221,-500.0,0.0001296,2]
[403099544,1769159433241,-500.0,0.0001296,2]
[403099545,1769159433251,-500.0,0.0001296,2]
[403099546,1769159433261,-206.91857857,0.0001296,2]
[403099547,1769159433271,-500.0,0.0001296,2]
[403099548,1769159433280,-500.0,0.0001296,2]
[403099549,1769159433291,-500.0,0.0001296,2]
[403099550,1769159433300,-500.0,0.0001296,2]
[403099551,1769159433310,-500.0,0.0001296,2]
[403099552,1769159433318,-460.42413241,0.0001296,2]
[403099553,1769159433327,-500.0,0.0001296,2]
[403099554,1769159433337,-500.0,0.0001296,2]
[403099555,1769159433348,-500.0,0.0001296,2]
[403099556,1769159433357,-500.0,0.0001296,2]
[403099557,1769159433365,-500.0,0.0001296,2]
[403099558,1769159433375,-500.0,0.0001296,2]
[403099559,1769159433384,-500.0,0.0001296,2]
[403099560,1769159433395,-500.0,0.0001296,2]
[403099561,1769159433405,-500.0,0.0001296,2]
[403099562,1769159433414,-500.0,0.0001296,2]
[403099563,1769159433423,-500.0,0.0001296,2]
[403099564,1769159433437,-500.0,0.0001296,2]
[403099565,1769159433446,-500.0,0.0001296,2]
[403099566,1769159433456,-250.0,0.0001296,2]
[403099567,1769159433465,-500.0,0.0001296,2]
[403099568,1769159433476,-500.0,0.0001296,2]
[403099569,1769159433485,-500.0,0.0001296,2]
[403099570,1769159433495,-500.0,0.0001296,2]
[403099571,1769159433506,-500.0,0.0001296,2]
[403099572,1769159433515,-500.0,0.0001296,2]
[403099573,1769159433524,-500.0,0.0001296,2]
[403099574,1769159433533,-500.0,0.0001296,2]
[403099575,1769159433543,-500.0,0.0001296,2]
[403099576,1769159433552,-500.0,0.0001296,2]
[403099577,1769159433796,-500.0,0.0001296,2]
[403099578,1769159433806,-500.0,0.0001296,2]
[403099579,1769159433815,-500.0,0.0001296,2]
[403099580,1769159433824,-499.99999999,0.0001296,2]
[403099581,1769159433835,-500.0,0.0001296,2]
[403099582,1769159433844,-500.0,0.0001296,2]
[403099583,1769159433853,-500.0,0.0001296,2]
[403099584,1769159433863,-500.0,0.0001296,2]
[403099585,1769159433872,-17794.5309556,0.00012961,2]
[403099586,1769159433880,-487.0,0.00012967,2]
[403099587,1769159433889,-499.47,0.00012967,2]
[403099588,1769159433898,-199.175,0.00013066,2]
[403099589,1769159433907,-1416.84857906,0.00013078,21]
[403099590,1769159433917,-12518.27205354,0.00013272,2]
[403099591,1769159434219,-4485.65774862,0.00013272,2]
[403099592,1769159434229,-610.94909855,0.00013272,2]
[403099593,1769159434241,-716.65322861,0.00013272,2]
[403099594,1769159434252,-3494.90085194,0.00013272,2]
[403099595,1769159434265,-475.4221411,0.00013272,2]
[403099596,1769159434276,-5269.30010608,0.00013272,2]
[403099616,1769159438500,-22643.15949796,0.00013272,2]
[403099617,1769159438512,-326.82804362,0.00013273,2]
[403099618,1769159438523,-500.0,0.00013273,2]
[403099619,1769159438533,-333.60184896,0.00013273,2]
[403099620,1769159438543,-158.10099855,0.00013273,2]
[403099621,1769159438553,-371.28937045,0.00013273,2]
[403099622,1769159438563,-500.0,0.00013273,2]
[403099623,1769159438573,-500.0,0.00013273,2]
[403099624,1769159438582,-500.0,0.00013273,2]
[403099625,1769159438591,-500.0,0.00013273,2]
[403099626,1769159438601,-640.2688157,0.00013282,2]
[403099627,1769159438610,-3816.84857906,0.00013364,24]
[403099628,1769159438620,-3816.84857906,0.00013651,26]
[403099629,1769159438629,-300.0,0.00013673,2]
[403099630,1769159438648,-863.73,0.00013698,2]
[403099631,1769159438659,-863.73,0.00013698,2]
[403099632,1769159438669,-863.73,0.00013698,2]
[403099633,1769159438680,-863.73,0.00013698,2]
[403099634,1769159438690,-863.73,0.00013698,2]
[403099635,1769159438700,-863.73,0.00013698,2]
[403099636,1769159438710,-863.73,0.00013698,2]
[403099637,1769159438720,-863.73,0.00013698,2]
[403099638,1769159438730,-863.73,0.00013698,2]
[403099639,1769159438742,-863.73,0.00013698,2]